fUST/lending_fUST_20260226
["ID","MTS","AMOUNT","RATE_DAILY","PERIOD"]
[406671284,1772058638375,-500.0,0.00018783,2]
[406671285,1772058638385,-250.0,0.00018783,2]
[406671286,1772058638394,-250.0,0.00018783,2]
[406671287,1772058638403,-250.0,0.00018783,2]
[406671288,1772058638413,-500.0,0.00018783,2]
[406671289,1772058638423,-250.0,0.00018783,2]
[406671290,1772058638434,-250.0,0.00018783,2]
[406671291,1772058638443,-250.0,0.00018783,2]
[406671292,1772058638452,-500.0,0.00018783,2]
[406671293,1772058638462,-250.0,0.00018783,2]
[406671294,1772058638471,-250.0,0.00018783,2]
[406671295,1772058638480,-250.0,0.00018783,2]
[406671296,1772058638490,-500.0,0.00018783,2]
[406671297,1772058638500,-191.152788,0.00018783,2]
[406671298,1772058638509,-250.0,0.00018783,2]
[406671299,1772058638519,-500.0,0.00018783,2]
[406671300,1772058638528,-250.0,0.00018783,2]
[406671301,1772058638538,-500.0,0.00018783,2]
[406671302,1772058638548,-250.0,0.00018783,2]
[406671303,1772058638558,-250.0,0.00018783,2]
[406671304,1772058638568,-250.0,0.00018783,2]
[406671305,1772058638577,-250.0,0.00018783,2]
[406671306,1772058638587,-250.0,0.00018783,2]
[406671307,1772058638596,-250.0,0.00018783,2]
[406671308,1772058638606,-382.86314327,0.00018783,2]
[406671309,1772058638615,-250.0,0.00018783,2]
[406671310,1772058638625,-2030.296672,0.00018838,2]
[406671311,1772058638635,-592.90010702,0.00018875,5]
[406671312,1772058638644,-421.24049978,0.00018875,5]
[406671313,1772058638655,-1037.63089528,0.00018893,2]
[406671314,1772058638667,-1067.78675358,0.00018893,2]
[406671315,1772058638676,-1522.31814355,0.00018948,2]
[406671316,1772058638688,-660.99995832,0.00018948,2]
[406671317,1772058638697,-1221.05,0.0001899,2]
[406671318,1772058638706,-222.0,0.0001899,2]
[406671319,1772058638716,-188.0,0.0001899,2]
[406671320,1772058638726,-414.2805995,0.00018999,2]
[406671321,1772058638737,-1520.26948323,0.00018999,2]
[406671322,1772058638748,-644.28441179,0.00018999,2]
[406671323,1772058638758,-500.0,0.00019,7]
[406671324,1772058638768,-500.0,0.00019,7]
[406671325,1772058638777,-266.18,0.00019,7]
[406671326,1772058638787,-2089.53558821,0.00019,2]
[406671327,1772058638803,-650.35441179,0.00019,2]
[406671328,1772058638813,-500.0,0.00019,2]
[406671329,1772058638823,-433.51236095,0.00019,2]
[406671330,1772058638835,-566.48763905,0.00019,2]
[406671331,1772058638844,-500.0,0.00019,7]
[406671332,1772058638854,-233.82,0.00019,7]
[406671333,1772058638864,-500.0,0.00019,7]
[406671334,1772058638873,-500.0,0.00019,7]
[406671335,1772058638882,-500.0,0.00019,7]
[406671336,1772058638891,-1648.80558807,0.00019003,2]
[406671337,1772058638900,-519.0431633,0.00019032,2]
[406671338,1772058638909,-3304.0,0.00019089,2]
[406671339,1772058638920,-1000.0,0.00019139,2]
[406671340,1772058638929,-1000.0,0.00019139,2]
[406671341,1772058638938,-510.31,0.00019167,2]
[406671342,1772058638947,-559.7561,0.00019168,2]
[406671343,1772058638956,-559.7561,0.00019168,2]
[406671344,1772058638967,-243.404,0.00019215,2]
[406671345,1772058638976,-1700.9866773,0.00019331,2]
[406671411,1772058640143,-250.0,0.00018783,2]
[406671413,1772058640153,-928.52779707,0.00019331,2]
[406671614,1772058642781,-500.0,0.00018783,2]
[406671615,1772058642791,-70.0,0.00018783,2]
[406671616,1772058642803,-180.0,0.00018783,2]
[406671617,1772058642813,-45.0929559,0.00019331,2]
[406671618,1772058642823,-668.65185757,0.00019331,2]
[406671619,1772058642833,-178.0,0.0001938,120]
[406671620,1772058642843,-178.0,0.0001938,120]
[406671621,1772058642852,-90.67755698,0.0001938,120]
[406671622,1772058642885,-33.99228995,0.0001938,120]
[406671623,1772058642916,-194.72792766,0.00018783,2]
[406671624,1772058642926,-55.33015307,0.0001938,120]
[406671625,1772058642935,-179.5191132,0.000194,2]
[406671626,1772058642947,-3304.0,0.00019462,2]
[406671627,1772058642956,-1279.2647,0.00019584,2]
[406671628,1772058642967,-626.4153,0.00019589,3]
[406671629,1772058642978,-2182.72928714,0.000196,2]
[406671630,1772058642988,-168.0,0.00019646,2]
[406671631,1772058642997,-160.63541141,0.00019734,2]
[406671632,1772058643007,-168.0,0.0001976,2]
[406671633,1772058643016,-5000.0,0.00019799,2]
[406671634,1772058643025,-868.2856041,0.000198,2]
[406671635,1772058643035,-176.70031983,0.000198,2]
[406671636,1772058643044,-706.80127933,0.000198,2]
[406671637,1772058643053,-1590.3028785,0.000198,2]
[406671638,1772058643063,-2827.20511734,0.000198,2]
[406671639,1772058643072,-80512.08290842,0.000198,2]
[406671640,1772058643083,-70156.86977855,0.000198,2]
[406671641,1772058643093,-168.0,0.00019823,2]
[406671642,1772058643103,-2773.56790519,0.00019879,2]
[406671644,1772058643112,-693.3919763,0.00019879,2]
[406671645,1772058643121,-510.31,0.00019899,2]
[406671646,1772058643130,-179.5191132,0.000199,2]
[406671647,1772058643140,-168.0,0.0001995,2]
[406671648,1772058643149,-510.31,0.00019984,2]
[406671649,1772058643159,-27242.1252953,0.00019985,2]
[406671650,1772058643168,-2623.4433259,0.00019985,2]
[406671651,1772058643178,-516.56,0.0001999,3]
[406671652,1772058643187,-510.31,0.00019998,2]
[406671653,1772058643196,-510.31,0.00019999,2]
[406671654,1772058643206,-510.31,0.00019999,2]
[406671655,1772058643215,-510.31,0.00019999,2]
[406671656,1772058643225,-510.31,0.00019999,2]
[406671657,1772058643236,-510.31,0.00019999,2]
[406671658,1772058643246,-510.31,0.00019999,2]
[406671659,1772058643256,-510.31,0.00019999,2]
[406671660,1772058643266,-510.31,0.00019999,2]
[406671661,1772058643275,-510.31,0.00019999,2]
[406671662,1772058643286,-510.31,0.00019999,2]
[406671663,1772058643296,-510.31,0.00019999,2]
[406671664,1772058643306,-510.31,0.00019999,2]
[406671665,1772058643316,-510.31,0.00019999,2]
[406671666,1772058643326,-510.31,0.00019999,2]
[406671667,1772058643335,-510.31,0.00019999,2]
[406671668,1772058643345,-510.31,0.00019999,2]
[406671669,1772058643358,-510.31,0.00019999,2]
[406671670,1772058643368,-510.31,0.00019999,2]
[406671671,1772058643377,-510.50957663,0.00019999,2]
[406671672,1772058643387,-523378.29837721,0.0002,2]
[406671686,1772058645766,-250.0,0.00018783,2]
[406671687,1772058645776,-500.0,0.00018783,2]
[406671688,1772058645785,-48.67022328,0.00018783,2]
[406671689,1772058645797,-201.32977672,0.00018783,2]
[406671690,1772058645807,-500.0,0.00018783,2]
[406671691,1772058645816,-250.0,0.00018783,2]
[406671692,1772058645826,-48.67022328,0.00018783,2]
[406671693,1772058645861,-23.33679762,0.00018783,2]
[406671694,1772058645920,-427.9929791,0.00018783,2]
[406671695,1772058645930,-250.0,0.00018783,2]
[406671696,1772058645940,-500.0,0.00018783,2]
[406671697,1772058645956,-250.0,0.00018783,2]
[406671698,1772058645977,-500.0,0.00018783,2]
[406671699,1772058645995,-1000.0,0.000195,2]
[406671700,1772058646015,-3250.45370906,0.0002,2]
[406671701,1772058646948,-230.94766772,0.0002,2]
[406671705,1772059536126,-300.0,0.00012266,2]
[406671706,1772059536147,-300.0,0.00012266,2]
[406671707,1772059536170,-300.0,0.00012266,2]
[406671708,1772059536404,-105.95766704,0.00012266,2]
[406671709,1772059632198,-194.04233296,0.00012266,2]
[406671710,1772059632219,-317.72201202,0.00012267,2]
[406671711,1772059632239,-167.24242121,0.00012267,2]
[406671712,1772059634086,-306.16344859,0.00012267,2]
[406671713,1772059649273,167.502713,0.00011585,2]
[406671714,1772059649667,167.502713,0.00011585,61]
[406671715,1772059649853,167.502713,0.00011585,120]
[406671717,1772059748093,-119.5941302,0.00012267,2]
[406671718,1772059748342,-1200.0,0.00012267,2]
[406671719,1772059748362,-300.0,0.00012267,2]
[406671720,1772059748382,-300.0,0.00012267,2]
[406671721,1772059748400,-12927.0692369,0.00012268,2]
[406671722,1772059748420,-200.0,0.00012274,2]
[406671723,1772059748438,-218.6747623,0.00012439,2]
[406671724,1772059748457,-500.0,0.00012509,2]
[406671725,1772059748478,-500.0,0.00012509,2]
[406671726,1772059748501,-500.0,0.00012509,2]
[406671727,1772059748523,-500.0,0.00012509,2]
[406671728,1772059748543,-302.20825005,0.00012509,2]
[406671729,1772059748566,-500.0,0.00012509,2]
[406671730,1772059748590,-500.0,0.00012509,2]
[406671731,1772059748610,-500.0,0.00012509,2]
[406671732,1772059748631,-500.0,0.00012509,2]
[406671733,1772059748653,-500.0,0.00012509,2]
[406671734,1772059748673,-566.94739035,0.00012509,2]
[406671735,1772059748698,-500.0,0.00012509,2]
[406671736,1772059748720,-500.0,0.00012509,2]
[406671737,1772059748741,-500.0,0.00012509,2]
[406671738,1772059748765,-500.0,0.00012509,2]
[406671739,1772059748786,-500.0,0.00012509,2]
[406671740,1772059748809,-500.0,0.00012509,2]
[406671741,1772059748830,-500.0,0.00012509,2]
[406671742,1772059748853,-500.0,0.00012509,2]
[406671743,1772059748874,-500.0,0.00012509,2]
[406671744,1772059748901,-500.0,0.00012509,2]
[406671745,1772059748924,-500.0,0.00012509,2]
[406671746,1772059748947,-500.0,0.00012509,2]
[406671747,1772059748970,-500.0,0.00012509,2]
[406671748,1772059748993,-500.0,0.00012509,2]
[406671749,1772059749016,-500.0,0.00012509,2]
[406671750,1772059749039,-500.0,0.00012509,2]
[406671751,1772059749061,-500.0,0.00012509,2]
[406671752,1772059749085,-500.0,0.00012509,2]
[406671753,1772059749109,-500.0,0.00012509,2]
[406671754,1772059749133,-500.0,0.00012509,2]
[406671755,1772059749156,-500.0,0.00012509,2]
[406671756,1772059749179,-500.0,0.00012509,2]
[406671757,1772059749202,-239.16289164,0.00012509,2]
[406671758,1772059749224,-500.0,0.00012509,2]
[406671759,1772059749247,-362.99505163,0.00012509,2]
[406671760,1772059749271,-500.0,0.00012509,2]
[406671761,1772059749292,-500.0,0.00012509,2]
[406671762,1772059749316,-500.0,0.00012509,2]
[406671763,1772059749341,-500.0,0.00012509,2]
[406671764,1772059749363,-500.0,0.00012509,2]
[406671765,1772059749386,-484.61589915,0.00012509,2]
[406671766,1772059749411,-500.0,0.00012509,2]
[406671767,1772059749435,-500.0,0.00012509,2]
[406671768,1772059749459,-500.0,0.00012509,2]
[406671769,1772059749482,-500.0,0.00012509,2]
[406671770,1772059749506,-500.0,0.00012509,2]
[406671771,1772059749531,-500.0,0.00012509,2]
[406671772,1772059749556,-500.0,0.00012509,2]
[406671773,1772059749580,-500.0,0.00012509,2]
[406671774,1772059749605,-500.0,0.00012509,2]
[406671775,1772059749629,-500.0,0.00012509,2]
[406671776,1772059749653,-500.0,0.00012509,2]
[406671777,1772059749678,-500.0,0.00012509,2]
[406671778,1772059749705,-500.0,0.00012509,2]
[406671779,1772059749729,-500.0,0.00012509,2]
[406671780,1772059749752,-500.0,0.00012509,2]
[406671781,1772059749779,-500.0,0.00012509,2]
[406671782,1772059749803,-500.0,0.00012509,2]
[406671783,1772059749827,-500.0,0.00012509,2]
[406671784,1772059749849,-500.0,0.00012509,2]
[406671785,1772059749871,-500.0,0.00012509,2]
[406671786,1772059749894,-500.0,0.00012509,2]
[406671787,1772059749918,-500.0,0.00012509,2]
[406671788,1772059749940,-500.0,0.00012509,2]
[406671789,1772059749962,-220.51287768,0.00012509,2]
[406671790,1772059749982,-194.05119829,0.00012509,2]
[406671791,1772059750004,-500.0,0.00012509,2]
[406671792,1772059750026,-469.9027813,0.00012509,2]
[406671793,1772059750049,-500.0,0.00012509,2]
[406671794,1772059750069,-50000.0,0.0001251,2]
[406671795,1772059750091,-500.0,0.00012512,2]
[406671796,1772059750114,-300.0,0.00012513,2]
[406671797,1772059750139,-300.0,0.00012513,2]
[406671798,1772059750164,-300.0,0.00012513,2]
[406671799,1772059750188,-300.0,0.00012513,2]
[406671800,1772059750211,-300.0,0.00012513,2]
[406671801,1772059750235,-300.0,0.00012513,2]
[406671802,1772059750257,-300.0,0.00012513,2]
[406671803,1772059750279,-300.0,0.00012513,2]
[406671804,1772059750301,-300.0,0.00012513,2]
[406671805,1772059750323,-300.0,0.00012513,2]
[406671806,1772059750344,-300.0,0.00012513,2]
[406671807,1772059750366,-300.0,0.00012513,2]
[406671808,1772059750387,-300.0,0.00012513,2]
[406671809,1772059750409,-300.0,0.00012513,2]
[406671810,1772059750431,-300.0,0.00012513,2]
[406671811,1772059750450,-280.3969,0.00012651,2]
[406671812,1772059750473,-600.0,0.00012762,2]
[406671813,1772059750494,-500.0,0.00012786,2]
[406671814,1772059750514,-173.49876684,0.00012984,2]
[406671815,1772059750535,-523.84605547,0.0001306,2]
[406671816,1772059750554,-251.11,0.000132,2]
[406671817,1772059750574,-1318.10629523,0.00013259,2]
[406671818,1772059750596,-151.0,0.00013264,2]
[406671819,1772059750631,-151.0,0.00013264,2]
[406671820,1772059750653,-262.89132858,0.00013264,2]
[406671821,1772059750675,-500.0,0.00013273,2]
[406671822,1772059750699,-168.55556147,0.00013273,2]
[406671823,1772059750719,-500.0,0.00013273,2]
[406671824,1772059750741,-500.0,0.00013273,2]
[406671825,1772059750764,-500.0,0.00013273,2]
[406671826,1772059750785,-500.0,0.00013273,2]
[406671827,1772059750806,-500.0,0.00013273,2]
[406671828,1772059750828,-500.0,0.00013273,2]
[406671829,1772059750849,-500.0,0.00013273,2]
[406671830,1772059750874,-500.0,0.00013273,2]
[406671831,1772059750895,-500.0,0.00013273,2]
[406671832,1772059750915,-500.0,0.00013273,2]
[406671833,1772059750937,-500.0,0.00013273,2]
[406671834,1772059750957,-604.20168174,0.00013273,2]
[406671835,1772059750977,-500.0,0.00013273,2]
[406671836,1772059750999,-500.0,0.00013273,2]
[406671837,1772059751020,-500.0,0.00013273,2]
[406671838,1772059751252,-500.0,0.00013273,2]
[406671839,1772059751273,-500.0,0.00013273,2]
[406671840,1772059751295,-500.0,0.00013273,2]
[406671841,1772059751316,-501.10464966,0.00013273,2]
[406671842,1772059751335,-500.0,0.00013273,2]
[406671843,1772059751356,-500.0,0.00013273,2]
[406671844,1772059751376,-500.0,0.00013273,2]
[406671845,1772059751396,-420.0,0.00013462,2]
[406671846,1772059751415,-420.0,0.00013462,2]
[406671847,1772059751435,-420.0,0.00013462,2]
[406671848,1772059751458,-420.0,0.00013463,2]
[406671849,1772059751478,-1680.0,0.00013494,2]
[406671850,1772059751499,-150.0,0.00013673,2]
[406671851,1772059751520,-500.0,0.00013698,2]
[406671852,1772059751542,-500.0,0.00013698,2]
[406671853,1772059751561,-500.0,0.00013698,2]
[406671854,1772059751581,-500.0,0.00013698,2]
[406671855,1772059751600,-500.0,0.00013698,2]
[406671856,1772059751620,-160.21927014,0.00013698,2]
[406671857,1772059751640,-500.0,0.00013698,2]
[406671858,1772059751661,-500.0,0.00013698,2]
[406671859,1772059751684,-501.94541573,0.00013698,2]
[406671860,1772059751706,-500.0,0.00013698,2]
[406671861,1772059751729,-500.0,0.00013698,2]
[406671862,1772059751751,-500.0,0.00013698,2]
[406671863,1772059751772,-500.0,0.00013698,2]
[406671864,1772059751792,-4200.0,0.00013699,2]
[406671865,1772059751812,-397.151298,0.00013699,2]
[406671866,1772059751831,-500.90423206,0.00013699,2]
[406671867,1772059751852,-500.0,0.00013699,2]
[406671868,1772059751871,-507.0376095,0.00013699,2]
[406671869,1772059751890,-511.40319057,0.00013699,2]
[406671870,1772059751910,-500.0,0.00013699,2]
[406671871,1772059751929,-177.75470331,0.00013699,2]
[406671872,1772059751950,-1000.0,0.00013821,2]
[406671873,1772059751974,-720.0,0.00014038,2]
[406671874,1772059751995,-204.68657708,0.00014221,2]
[406671875,1772059752015,-158.79582456,0.00014247,2]
[406671876,1772059752036,-500.0,0.00014247,2]
[406671877,1772059752059,-345.86918815,0.00014267,2]
[406671878,1772059754407,-1500.0,0.00014368,2]
[406671879,1772059754427,-587.0,0.00014774,2]
[406671880,1772059754446,-413.0,0.00014774,2]
[406671881,1772059754470,-587.0,0.00014774,2]
[406671882,1772059754492,-587.0,0.00014776,2]
[406671883,1772059754515,-2056.0,0.00014844,2]
[406671884,1772059754538,-2000.0,0.00014916,2]
[406671885,1772059754561,-200.0,0.00014987,2]
[406671886,1772059754583,-153.00486036,0.00015117,2]
[406671887,1772059754604,-685.53,0.00015207,3]
[406671888,1772059754625,-3656.05,0.00015217,3]
[406671889,1772059754646,-1828.02,0.00015217,3]
[406671890,1772059754669,-914.01,0.00015217,3]
[406671891,1772059754691,-457.01,0.00015217,3]
[406671892,1772059754712,-228.5,0.00015217,3]
[406671893,1772059754733,-13300.76988114,0.00015227,2]
[406671894,1772059754758,-864.0,0.00015442,2]
[406671895,1772059754777,-2649.53725364,0.00015464,2]
[406671896,1772059754798,-349.0,0.00016216,2]
[406671897,1772059754870,311.36757178,0.00012509,2]
[406671898,1772059755042,286.4215376,0.00014509,2]
[406671899,1772059760129,-80.9921971,0.00014509,2]
[406671900,1772059767115,-500.0,0.00016438,2]
[406671901,1772059767137,-500.0,0.00016438,3]
[406671902,1772059767158,-500.0,0.00016438,4]
[406671903,1772059767179,-150.0,0.00016438,2]
[406671904,1772059767201,-423.45989762,0.00016509,2]
[406671905,1772059767222,-7312.1,0.00016587,3]
[406671906,1772059767242,-3656.04,0.00016587,3]
[406671907,1772059767263,-1828.02,0.00016587,3]
[406671908,1772059767286,-914.02,0.00016587,3]
[406671909,1772059767307,-457.0,0.00016587,3]
[406671910,1772059767328,-153.00486036,0.00016711,2]
[406671911,1772059767348,-250.0,0.00016986,2]
[406671912,1772059767371,-482.2415436,0.00016987,2]
[406671913,1772059807732,500.0,0.00013273,2]
[406671914,1772059807759,358.02021966,0.00013273,2]
[406671915,1772059807784,141.97978034,0.00013273,2]
[406671916,1772059807835,508.42568191,0.00013273,2]
[406671917,1772059807861,172.48905877,0.00013273,2]
[406671918,1772059807888,327.51094123,0.00013273,2]
[406671919,1772059807922,500.0,0.00013273,2]
[406671920,1772059807955,13.72924173,0.00013821,2]
[406671921,1772059807976,725.72467558,0.00013821,2]
[406671922,1772059807998,260.54608269,0.00013821,2]
[406671923,1772059808053,327.45391731,0.00013273,2]
[406671940,1772059831776,-173.14018588,0.00013273,2]
[406671942,1772059831786,-500.0,0.00013273,2]
[406671943,1772059831797,-111.99206737,0.00013273,2]
[406671945,1772059831809,-388.00793263,0.00013273,2]
[406671946,1772059831819,-500.0,0.00013273,2]
[406671948,1772059831829,-272.71715126,0.00017934,2]
[406671951,1772059831857,-227.28284874,0.00017934,2]
[406671952,1772059831866,-500.0,0.00017934,2]
[406671954,1772059831876,-685.0,0.00017934,2]
[406671956,1772059831886,-1000.0,0.00017961,2]
[406671957,1772059831895,-401.16278045,0.00017999,2]
[406672054,1772059837826,-98.83721955,0.00017999,2]
[406672056,1772059837836,-500.0,0.00017999,5]
[406672058,1772059837845,-500.0,0.00017999,2]
[406672060,1772059837855,-200.0,0.00018019,3]
[406672061,1772059837864,-356.672661,0.00018502,7]
[406672062,1772059837873,-236.088675,0.00018502,7]
[406672063,1772059837883,-460.986492,0.00018502,7]
[406672064,1772059837893,-479.50606054,0.00018509,2]
[406672065,1772059837903,-2000.0,0.000187,2]
[406672066,1772059837913,-500.0,0.00018752,2]
[406672067,1772059837922,-500.0,0.00018752,6]
[406672068,1772059837932,-500.0,0.00018752,7]
[406672070,1772059837942,-500.0,0.00018752,2]
[406672072,1772059837953,-2000.0,0.000188,2]
[406672074,1772059837963,-250.0,0.00018845,2]
[406672075,1772059837972,-500.0,0.00018845,2]
[406672077,1772059837982,-248.22287318,0.00018845,2]
[406672078,1772059837994,-1.77712682,0.00018845,2]
[406672079,1772059838003,-500.0,0.00018845,2]
[406672080,1772059838013,-250.0,0.00018845,2]
[406672081,1772059838022,-644.79446246,0.00018845,2]
[406672082,1772059838031,-500.0,0.00018845,2]
[406672083,1772059838040,-250.0,0.00018845,2]
[406672084,1772059838049,-250.0,0.00018845,2]
[406672085,1772059838059,-500.0,0.00018845,2]
[406672086,1772059838068,-194.72792766,0.00018845,2]
[406672087,1772059838077,-500.0,0.00018845,2]
[406672088,1772059838087,-250.0,0.00018845,2]
[406672089,1772059838097,-500.0,0.00018845,2]
[406672090,1772059838107,-194.72792766,0.00018845,2]
[406672091,1772059838117,-250.0,0.00018845,2]
[406672092,1772059838127,-500.0,0.00018845,2]
[406672093,1772059838137,-250.0,0.00018845,2]
[406672094,1772059838146,-201.93286099,0.00018845,2]
[406672095,1772059838156,-500.0,0.00018845,2]
[406672096,1772059838166,-250.0,0.00018845,2]
[406672097,1772059838175,-209.40437684,0.00018845,2]
[406672098,1772059838185,-500.0,0.00018845,2]
[406672099,1772059838194,-217.15233878,0.00018845,2]
[406672100,1772059838206,-500.0,0.00018845,2]
[406672101,1772059838215,-225.18697532,0.00018845,2]
[406672102,1772059838225,-500.0,0.00018845,2]
[406672103,1772059838234,-233.51889341,0.00018845,2]
[406672104,1772059838244,-214.56903595,0.00018845,2]
[406672105,1772059838256,-285.43096405,0.00018845,2]
[406672106,1772059838266,-242.15909246,0.00018845,2]
[406672107,1772059838275,-500.0,0.00018845,2]
[406672108,1772059838285,-251.11897888,0.00018845,2]
[406672109,1772059838295,-260.4103811,0.00018845,2]
[406672110,1772059838304,-270.0455652,0.00018845,2]
[406672111,1772059838313,-250.0,0.00018845,2]
[406672112,1772059838322,-280.03725112,0.00018845,2]
[406672113,1772059838331,-290.39862941,0.00018845,2]
[406672114,1772059838340,-301.1433787,0.00018845,2]
[406672115,1772059838350,-500.0,0.00018845,2]
[406672116,1772059838359,-250.0,0.00018845,2]
[406672117,1772059838368,-500.0,0.00018845,2]
[406672118,1772059838378,-250.0,0.00018845,2]
[406672119,1772059838387,-500.0,0.00018845,2]
[406672120,1772059838396,-250.0,0.00018845,2]
[406672121,1772059838406,-500.0,0.00018845,2]
[406672122,1772059838415,-500.0,0.00018845,2]
[406672123,1772059838425,-2579.17784983,0.00018845,2]
[406672124,1772059838434,-114.92025833,0.00018845,2]
[406672125,1772059838641,-385.07974167,0.00018845,2]
[406672126,1772059838651,-500.0,0.00018845,2]
[406672127,1772059838661,-500.0,0.00018845,2]
[406672128,1772059838671,-500.0,0.00018845,2]
[406672129,1772059838680,-500.0,0.00018845,2]
[406672130,1772059838689,-500.0,0.00018845,2]
[406672131,1772059838701,-500.0,0.00018845,2]
[406672132,1772059838714,-500.0,0.00018845,2]
[406672133,1772059838724,-250.0,0.00018845,2]
[406672134,1772059838734,-250.0,0.00018845,2]
[406672135,1772059838743,-250.0,0.00018845,2]
[406672136,1772059838756,-500.0,0.00018845,2]
[406672137,1772059838766,-250.0,0.00018845,2]
[406672138,1772059838775,-500.0,0.00018845,2]
[406672139,1772059838786,-250.0,0.00018845,2]
[406672140,1772059838796,-500.0,0.00018845,2]
[406672141,1772059838805,-376.5556878,0.0001885,2]
[406672142,1772059838816,-1684.96199911,0.00018875,5]
[406672143,1772059838826,-3787.37333349,0.00018875,5]
[406672144,1772059838835,-2000.0,0.000189,2]
[406672145,1772059838845,-448.58,0.00019,7]
[406672146,1772059838855,-2000.0,0.00019,2]
[406672147,1772059838864,-1365.52557597,0.00019018,2]
[406672148,1772059838875,-500.0,0.00019088,8]
[406672149,1772059838886,-1215.061,0.000191,2]
[406672150,1772059838895,-500.0,0.00019167,2]
[406672151,1772059838906,-500.0,0.00019167,2]
[406672152,1772059838915,-850.0,0.00019182,2]
[406672153,1772059838925,-600.0,0.00019221,2]
[406672154,1772059838935,-194.723,0.00019323,2]
[406672155,1772059838944,-668.65185757,0.00019393,2]
[406672156,1772059838955,-2674.60743027,0.00019393,2]
[406672157,1772059838964,-151.0,0.000194,2]
[406672158,1772059838974,-500.0,0.00019583,9]
[406672159,1772059838985,-1675.06506397,0.000196,2]
[406672160,1772059838994,-846.0,0.00019704,2]
[406672161,1772059839004,-160.63541141,0.0001971,2]
[406672162,1772059839013,-153.00486036,0.00019758,2]
[406672163,1772059839023,-847.0,0.00019776,2]
[406672164,1772059839032,-731.21,0.0001979,3]
[406672165,1772059839042,-365.6,0.0001979,3]
[406672166,1772059839051,-182.8,0.0001979,3]
[406672167,1772059839060,-548.43,0.0001979,3]
[406672168,1772059839070,-846.0,0.00019795,2]
[406672169,1772059839079,-846.0,0.00019799,2]
[406672170,1772059839089,-4417.50799584,0.000198,2]
[406672171,1772059839098,-6361.21151401,0.000198,2]
[406672172,1772059839111,-311.35989151,0.000198,2]
[406672173,1772059839120,-355.83987601,0.000198,2]
[406672174,1772059839130,-397.60910575,0.000198,2]
[406672175,1772059839140,-400.43152415,0.000198,2]
[406672176,1772059839150,-306949.3007923,0.000198,2]
[406672177,1772059839208,-15687.93598147,0.000198,2]
[406672367,1772059843345,-250.0,0.00018845,2]
[406672369,1772059843372,-147.50190556,0.00018845,2]
[406672371,1772059843402,-352.49809444,0.00018845,2]
[406672372,1772059843412,-250.0,0.00018845,2]
[406672373,1772059843422,-204.4931811,0.00018845,2]
[406672374,1772059843435,-295.5068189,0.00018845,2]
[406672375,1772059843444,-250.0,0.00018845,2]
[406672376,1772059843455,-250.0,0.00018845,2]
[406672377,1772059843464,-250.0,0.00018845,2]
[406672378,1772059843474,-3.4431811,0.00018845,2]
[406672379,1772059843485,-246.5568189,0.00018845,2]
[406672380,1772059843495,-500.0,0.00018845,2]
[406672381,1772059843504,-250.0,0.00018845,2]
[406672382,1772059843513,-221.69092783,0.00018845,2]
[406672383,1772059843523,-250.0,0.00018845,2]
[406672384,1772059843533,-30409.88888742,0.000198,2]